Cogmind - Beta 11.1 @@@ ROGUE MODE // 2022.06.09 @ 14:58:39 Player: Decinym Result: Destroyed by P-60 Hacker with Shock Rifle Performance ------------- Evolutions (1) 500 Regions Visited (5) 1000 Robots Destroyed (48) 240 Value Destroyed (817) 817 Prototype IDs (35) 700 Alien Tech Used (0) 0 Bonus (-48) -48 TOTAL SCORE: 3209 Bonus ------- Aligned with FarCom 300 Friendly Fire -348 Cogmind --------- Core Integrity 0/400 Matter 213/300 Energy 99/100 System Corruption 8% Temperature Cool (0) Movement Core (50) Location -9/Exiles Parts ------- > --- POWER (1) -------- (None) > --- PROPULSION (3) --- (None) > --- UTILITY (3) ------ (None) > --- WEAPON (2) ------- (None) > --- INVENTORY (5) ---- Light Ion Engine Improved Ion Engine AS-neutralizer No. 17b 8R-AWN's Boregun Rocket Launcher Peak State ------------ > --- POWER ------------ Improved Ion Engine > --- PROPULSION ------- Light Treads Light Treads Light Treads > --- UTILITY ---------- High-capacity Storage Unit Medium Armor Plating Thief Drone Bay > --- WEAPON ----------- Heavy Assault Rifle Longsword +1 > --- INVENTORY -------- Light Ion Engine Fission Core Fission Core Fission Core Light Treads Light Treads Light Treads Compact Matter Pod Compact Matter Pod Light Armor Plating Medium Armor Plating Chronowheel Assault Rifle Assault Rifle Heavy Assault Rifle Heavy Assault Rifle Rocket Launcher Rocket Launcher Datajack [Rating: 30] Favorites ----------- Power Light Ion Engine Engine Light Ion Engine Propulsion Aluminum Leg Treads Light Treads Leg Aluminum Leg Utility High-capacity Storage Unit Device Improved Heat Sink Storage High-capacity Storage Unit Processor Transport Network Coupler Protection Medium Armor Plating Weapon Assault Rifle Energy Gun Improved Medium Laser Ballistic Gun Assault Rifle Launcher Grenade Launcher Slashing Weapon Longsword +1 Special Melee Weapon Datajack Build | -11 -10 -10 -9 -9 -9 ------- Run | Scr Mat Min Mat Min Exi Slots Evolved 2 | . . . 2 . . Power . | . . . . . . Propulsion 1 | . . . 1 . . Utility 1 | . . . 1 . . Weapon . | . . . . . . Parts Attached 56 | . 13 14 12 2 15 Power 4 | . 1 1 2 . . Engine 4 | . 1 1 2 . . Core . | . . . . . . Reactor . | . . . . . . Propulsion 12 | . 1 4 3 . 4 Treads 6 | . . . 3 . 3 Leg 6 | . 1 4 . . 1 Wheel . | . . . . . . Hover . | . . . . . . Flight . | . . . . . . Utility 15 | . 4 1 4 2 4 Device 6 | . 2 1 1 1 1 Storage 2 | . 1 . . . 1 Processor 1 | . . . 1 . . Hackware . | . . . . . . Protection 6 | . 1 . 2 1 2 Artifact . | . . . . . . Weapon 25 | . 7 8 3 . 7 Energy Gun 5 | . 2 1 2 . . Energy Cannon . | . . . . . . Ballistic Gun 12 | . 3 4 1 . 4 Ballistic Cannon . | . . . . . . Launcher 6 | . 2 3 . . 1 Special Weapon . | . . . . . . Impact Weapon . | . . . . . . Slashing Weapon 1 | . . . . . 1 Piercing Weapon . | . . . . . . Special Melee Weapon 1 | . . . . . 1 Unidentified Prototypes 2 | . . . 1 1 . Parts Lost 21 | . 1 7 2 . 11 Power 3 | . 1 1 1 . . Propulsion 9 | . . 3 . . 6 Utility 4 | . . 1 . . 3 Weapon 5 | . . 2 1 . 2 Highest Loss Streak 7 | . 1 4 1 . 7 To Critical Strikes 3 | . . . . . 3 Average Slot Usage (%) 97 | . 99 98 92 99 97 Engine 12 | . 13 12 11 11 10 Treads 10 | . . . 22 33 31 Leg 18 | . 28 27 6 . . Device 10 | . 12 13 12 . 1 Storage 12 | . 14 14 11 11 11 Protection 5 | . . . 4 21 19 Energy Gun 9 | . 13 4 20 22 1 Ballistic Gun 15 | . 14 22 1 . 17 Naked Turns 3 | . . . . . 3 Heaviest Build 63 | 12 48 49 63 63 63 Greatest Support 60 | 20 20 20 60 60 60 Greatest Overweight (x) 4 | . 2 4 2 1 1 Average Overweight (x) 1 | . 1 2 . . . Largest Inventory Capacity 20 | . 20 20 20 20 20 Average Capacity 19 | . 18 20 20 20 19 Most Carried 20 | . 13 14 20 20 20 Average Carried 13 | . 11 11 15 19 19 Final Capacity 20 | 8 20 20 20 20 5 Final Carried 20 | 6 12 11 20 20 5 Class Distribution -------------------- 77% | Mutant 22% | Scavenger-Mutant Dominant Class ---------------- Mutant | -10/Materials Mutant | -10/Mines Mutant | -9/Materials Mutant | -9/Mines Mutant | -9/Exiles Resources | -11 -10 -10 -9 -9 -9 ----------- Run | Scr Mat Min Mat Min Exi Matter Collected 1075 | 200 317 312 149 20 77 Remotely . | . . . . . . Salvage Created 1461 | . 391 353 635 82 . Parts 96 | . 24 22 47 3 . Haulers Intercepted 3 | . . . 3 . . Recyclers Shooed 2 | . 1 . 1 . . Parts Field Recycled . | . . . . . . Retrieved Matter . | . . . . . . Parts Self-Destructed . | . . . . . . Prevented . | . . . . . . Kills | -11 -10 -10 -9 -9 -9 ------- Run | Scr Mat Min Mat Min Exi Combat Hostiles Destroyed 27 | . 8 10 9 . . Guns 16 | . 5 3 8 . . AOE 10 | . 3 7 . . . Classes Destroyed 9 | . 6 . 3 . . Worker 5 | . 1 3 1 . . Builder 4 | . 3 1 . . . Tunneler 1 | . . . 1 . . Hauler 3 | . . . 3 . . Recycler 5 | . 1 1 2 1 . Watcher 3 | . 1 . 2 . . Swarmer 13 | . 1 6 6 . . Grunt 11 | . 7 4 . . . Sentry 3 | . . . 3 . . Best Kill Streak 6 | . 6 3 5 1 . Combat Bots Only 4 | . 4 3 4 . . Max Kills in Single Turn 3 | . 2 3 2 1 . Gunslinging . | . . . . . . Exploded 3 | . 1 3 . . . Melee . | . . . . . . Uniques/NPCs Destroyed . | . . . . . . Combat | -11 -10 -10 -9 -9 -9 -------- Run | Scr Mat Min Mat Min Exi Damage Taken 3397 | . 522 533 449 . 1893 Core 545 | . 122 12 76 . 335 Absorbed by Shields . | . . . . . . Redirected to Shielding 3 | . 3 . . . . Core Remaining (%) 73 | 100 . 46 . . . Volleys Fired 132 | . 46 39 35 1 11 Largest 2 | . 2 2 2 2 2 Hottest 112 | . 70 40 112 112 46 Shots Fired 251 | . 82 75 69 2 23 Gun 237 | . 71 72 69 2 23 Cannon . | . . . . . . Launcher 14 | . 11 3 . . . Special . | . . . . . . Kinetic 137 | . 35 71 8 . 23 Thermal 100 | . 36 1 61 2 . Explosive 14 | . 11 3 . . . Electromagnetic . | . . . . . . Robot Hit Streak 13 | . 10 12 13 1 12 Robot Miss Streak 5 | . 5 4 3 . 2 Penetration Max . | . . . . . . Secondary Targets . | . . . . . . Shots Hit Robots 174 | . 51 46 41 1 35 Core Hits 77 | . 24 25 20 1 7 Critical Kills 1 | . 1 . . . . Critical Parts Destroyed . | . . . . . . Critical Strikes 9 | . 4 . 4 . 1 Burn 7 | . 3 . 4 . . Destroy 1 | . 1 . . . . Sever 1 | . . . . . 1 Melee Attacks 16 | . . . . . 16 Impact . | . . . . . . Slashing 13 | . . . . . 13 Piercing . | . . . . . . Sneak Attacks 4 | . . . . . 4 Combat Hostiles . | . . . . . . Follow-up Attacks . | . . . . . . Damage Inflicted 3554 | . 1130 689 763 34 938 Guns 2059 | . 606 385 746 34 288 Cannons . | . . . . . . Explosions 802 | . 516 286 . . . Melee 650 | . . . . . 650 Ramming 43 | . 8 18 17 . . Kinetic 1049 | . 319 385 57 . 288 Thermal 1010 | . 287 . 689 34 . Explosive 802 | . 516 286 . . . Electromagnetic . | . . . . . . Impact . | . . . . . . Slashing 650 | . . . . . 650 Piercing . | . . . . . . Highest Corruption 7 | . 3 3 . . 7 Average Corruption 3 | . 2 3 . . 4 Corruption Purged . | . . . . . . Corruption Blocked . | . . . . . . Effects 38 | . 7 30 . . 1 Message Errors 7 | . . 7 . . . Matter Fused 8 | . 1 7 . . . Heat Flow Errors 4 | . 1 3 . . . Energy Discharges 4 | . 1 3 . . . Data Loss (minor) 8 | . 2 6 . . . Data Loss (major) 1 | . . 1 . . . Misfires 4 | . 1 2 . . 1 Alerts 1 | . 1 . . . . Weapon Failures 1 | . . 1 . . . Overload Shots . | . . . . . . Overflow Damage 36 | . 31 5 . . . Projectiles . | . . . . . . Explosions 36 | . 31 5 . . . Melee . | . . . . . . Knockbacks . | . . . . . . Impact . | . . . . . . Kinetic . | . . . . . . Secondary . | . . . . . . Self-Inflicted Damage 39 | . 1 38 . . . Shots 3 | . 1 2 . . . Rammed 1 | . . . 1 . . Targets Rammed 6 | . 3 2 1 . . Kicked 5 | . 3 2 . . . Crushed . | . . . . . . Highest Temperature 265 | . 242 265 108 63 . Average Temperature 47 | . 38 84 34 33 . Received Heat Transfer 654 | . 264 225 126 . 39 Siege Activations . | . . . . . . Robots Corrupted . | . . . . . . Combat Hostiles . | . . . . . . Parts Fried . | . . . . . . Impact Corruptions . | . . . . . . Robots Melted 1 | . . . 1 . . Combat Hostiles 1 | . . . 1 . . Parts Melted 4 | . 1 . 3 . . Heat Transferred 2923 | . 1073 . 1776 74 . Parts Sabotaged . | . . . . . . Parts Stolen . | . . . . . . Parts Stripped . | . . . . . . Power Chain Reactions . | . . . . . . Missiles Intercepted . | . . . . . . Alert | -11 -10 -10 -9 -9 -9 ------- Run | Scr Mat Min Mat Min Exi Peak Influence 241 | . 241 212 158 61 . Initial 56 | . . 22 . 56 . Average 60 | . 65 51 77 58 . Maximum Alert Level 1 | . 1 1 . . . Low Security (%) 91 | . 91 86 100 100 . Level 1 8 | . 8 13 . . . Level 2 . | . . . . . . Level 3 . | . . . . . . Level 4 . | . . . . . . Level 5 . | . . . . . . High Security . | . . . . . . Max Security . | . . . . . . Squads Dispatched 2 | . 2 . . . . Investigation . | . . . . . . Extermination . | . . . . . . Reinforcement 2 | . 2 . . . . Assault . | . . . . . . Garrison . | . . . . . . Intercept . | . . . . . . Searches Triggered . | . . . . . . Construction Impeded . | . . . . . . Haulers Reinforced . | . . . . . . Active Scanning Responses . | . . . . . . Cargo Convoy Interrupts . | . . . . . . Stealth | -11 -10 -10 -9 -9 -9 --------- Run | Scr Mat Min Mat Min Exi Distress Signals 3 | . 2 . 1 . . Communications Jammed . | . . . . . . Distress Signals . | . . . . . . Times Spotted 114 | . 21 11 14 . 68 Peak Tracking Total 10 | . 4 3 4 . 10 Tactical Retreats 8 | . 1 1 . . 6 Traps | -11 -10 -10 -9 -9 -9 ------- Run | Scr Mat Min Mat Min Exi Traps Triggered 2 | . 2 . . . . Indirectly . | . . . . . . Trap Hack Attempts . | . . . . . . Triggered . | . . . . . . Disarmed . | . . . . . . Reprogrammed . | . . . . . . Reused . | . . . . . . Traps Extracted . | . . . . . . Installed . | . . . . . . Triggered . | . . . . . . Exploded 1 | . . . . . 1 Machines | -11 -10 -10 -9 -9 -9 ---------- Run | Scr Mat Min Mat Min Exi Machines Disabled 1 | . 1 . . . . Max in Single Turn 1 | . 1 . . . . Machines Sabotaged . | . . . . . . Garrisons Compromised . | . . . . . . Overloaded Fab Kills . | . . . . . . Hacking | -11 -10 -10 -9 -9 -9 --------- Run | Scr Mat Min Mat Min Exi Machines Accessed 4 | . 1 . 1 1 1 Terminals 2 | . 1 . 1 . . Fabricators . | . . . . . . Repair Stations . | . . . . . . Recycling Units . | . . . . . . Scanalyzers . | . . . . . . Garrison Access . | . . . . . . Total Hacks 8 | . 1 . 5 1 1 Successful 5 | . 1 . 2 1 1 Failed 3 | . . . 3 . . Catastrophic . | . . . . . . Database Lockouts . | . . . . . . Manual 5 | . 1 . 3 . 1 Terminals 6 | . 1 . 5 . . Fabricators . | . . . . . . Repair Stations . | . . . . . . Recycling Units . | . . . . . . Scanalyzers . | . . . . . . Garrison Access . | . . . . . . Terminal Hacks 4 | . 1 . 1 1 1 Open Door 1 | . . . . 1 . Branch Access Points 2 | . 1 . 1 . . EX-Prototype ID Bank 1 | . . . . . 1 Fabricator Hacks . | . . . . . . Repair Station Hacks . | . . . . . . Recycling Unit Hacks . | . . . . . . Scanalyzer . | . . . . . . Garrison Access Hacks . | . . . . . . Unauthorized Hacks 1 | . . . 1 . . Terminals 1 | . . . 1 . . Botnet 1 | . . . 1 . . Fabricators . | . . . . . . Repair Stations . | . . . . . . Recycling Units . | . . . . . . Scanalyzers . | . . . . . . Garrison Access . | . . . . . . Data Cores Recovered . | . . . . . . Used . | . . . . . . Hacking Detections 2 | . 1 . 1 . . Full Trace Events . | . . . . . . Feedback Events . | . . . . . . Feedback Blocked . | . . . . . . Robot Schematics Acquired . | . . . . . . Robots Built . | . . . . . . Authchips . | . . . . . . Time . | . . . . . . Total Robot Build Rating . | . . . . . . Part Schematics Acquired . | . . . . . . Parts Built . | . . . . . . Authchips . | . . . . . . Time . | . . . . . . Total Part Build Rating . | . . . . . . Parts Repaired . | . . . . . . Time . | . . . . . . Parts Recycled . | . . . . . . Recycled Matter . | . . . . . . Retrieved Matter . | . . . . . . Retrieved Components . | . . . . . . Parts Scanalyzed . | . . . . . . Part Schematics Acquired . | . . . . . . Parts Damaged . | . . . . . . Bothacking | -11 -10 -10 -9 -9 -9 ------------ Run | Scr Mat Min Mat Min Exi Used RIF Installer . | . . . . . . Robots Hacked 2 | . . . . . 2 Non-combat 1 | . . . . . 1 Combat 1 | . . . . . 1 Robot Hacks Applied 3 | . . . . . 3 parse_system 3 | . . . . . 3 Relay Couplers Released . | . . . . . . Fabnet Peak Effective % . | . . . . . . Robots Rewired . | . . . . . . Allies Hacked . | . . . . . . Hacks Repelled . | . . . . . . Allies | -11 -10 -10 -9 -9 -9 -------- Run | Scr Mat Min Mat Min Exi Total Allies 3 | . . . . 3 . Largest Group 3 | . . . . 3 3 Highest-Rated Group 40 | . . . . 40 40 Highest-Rated Ally 16 | . . . . 16 16 Total Orders . | . . . . . . Ally Attacks 44 | . . . . . 44 Total Damage 350 | . . . . . 350 Kills 1 | . . . . . 1 Allies Corrupted . | . . . . . . Allies Melted . | . . . . . . Intel | -11 -10 -10 -9 -9 -9 ------- Run | Scr Mat Min Mat Min Exi Robot Analysis Total . | . . . . . . Derelict Logs Recovered 2 | . . 2 . . . Drone Launches 6 | . . . . . 6 Drone Recoveries 3 | . . . . . 3 Exploration | -11 -10 -10 -9 -9 -9 ------------- Run | Scr Mat Min Mat Min Exi Turns Passed 4965 | . 1061 2062 797 323 722 Spaces Moved 1869 | 1 390 739 338 134 267 Core 3 | . . . . . 3 Treads 640 | . . . 254 134 252 Legs 1226 | 1 390 739 84 . 12 Wheels . | . . . . . . Hover . | . . . . . . Flight . | . . . . . . Fastest Speed 50 | 120 120 260 160 160 50 Average Speed 236 | 120 230 260 193 236 232 Slowest Speed 400 | 120 260 400 260 240 240 Overloaded Moves . | . . . . . . Propulsion Burnouts . | . . . . . . Robots Hopped . | . . . . . . Cave-ins Triggered . | . . . . . . Exploration Rate (%) 49 | 2 58 98 33 39 65 Regions Visited 5 Branch Regions 3 Pre-discovered Areas . | . . . . . . Known Exits Taken 2 | . 1 . 1 . . Unknown Exits Taken 3 | 1 . 1 . 1 . Scrap Searched 2 | . . 2 . . . Spaces Dug 8 | . . 8 . . . Terrain Destroyed 52 | . 28 24 . . . Melee . | . . . . . . Projectile . | . . . . . . AOE 52 | . 28 24 . . . Terrain Rammed . | . . . . . . Walls Destroyed . | . . . . . . Machines Disabled . | . . . . . . Actions | -11 -10 -10 -9 -9 -9 --------- Run | Scr Mat Min Mat Min Exi Total 2167 | . 467 807 415 140 338 Wait 22 | . 2 8 7 . 5 Move 1864 | . 389 738 337 133 267 Hop . | . . . . . . Pick Up 35 | . 8 3 14 1 9 Fast Attach 14 | . 3 4 5 2 . Attach 24 | . 2 5 6 . 11 Detach 4 | . . 1 2 . 1 Swap 18 | . 8 5 1 . 4 Drop 32 | . 6 2 7 3 14 Fire 132 | . 46 39 35 1 11 Melee 16 | . . . . . 16 Ram . | . . . . . . Kick 5 | . 3 2 . . . Crush 1 | . . . 1 . . Escape Stasis . | . . . . . . Rewire . | . . . . . . Trap . | . . . . . . Miscellaneous . | . . . . . . Route ------- -11/Scrapyard -10/Materials (discovered 3 exits: *Mat x2 / *Min) -10/Mines (discovered 2 exits: *Mat x2) -9/Materials (discovered 3 exits: [*Mat] / *Min x2) -9/Mines (discovered 2 exits: [*Mat] / *Exi) -9/Exiles History --------- Turn | Location | Event 1 | -11/Scrapyard | Discovered new exit (range 0) 1 | -11/Scrapyard | Entered Materials 325 | -10/Materials | Build established: Mutant 377 | -10/Materials | Discovered new exit (range 15) 765 | -10/Materials | Identified exit to Mines 898 | -10/Materials | Discovered new exit (range 7) 1062 | -10/Materials | Entered Mines 1159 | -10/Mines | Learned Materials stockpile data 1677 | -10/Mines | Learned Materials stockpile data 1999 | -10/Mines | Discovered new exit (range 5) 2059 | -10/Mines | Core integrity fell below 50% 2097 | -10/Mines | Lost 4 parts (1p1n1u1w) 2361 | -10/Mines | Discovered new exit (range 7) 2671 | -10/Mines | Build established: Scavenger-Mutant 3124 | -10/Mines | Entered Materials 3124 | -9/Materials | Evolved 2 slots: Propulsion x1, Utility x1 3376 | -9/Materials | Identified exit to Mines 3651 | -9/Materials | Discovered new exit (range 9) 3682 | -9/Materials | Build established: Mutant 3921 | -9/Materials | Entered Mines 3931 | -9/Mines | Assisted by bots powering up and referring to "LRC-V3" 4051 | -9/Mines | Discovered new exit (range 8) 4076 | -9/Mines | Found the Drone Emporium 4083 | -9/Mines | Found Prototype Device 4083 | -9/Mines | Identified Thief Drone Bay 4230 | -9/Mines | Deemed a non-threat by the Exiles lab entrance 4232 | -9/Mines | Discovered new exit (range 5) 4244 | -9/Mines | Entered Exiles 4244 | -9/Exiles | Accompanied by 3 allies 4302 | -9/Exiles | Met 8R-AWN 4407 | -9/Exiles | Met EX-HEX 4560 | -9/Exiles | Met EX-BIN 4593 | -9/Exiles | Aligned with FarCom system 4596 | -9/Exiles | Given EX-Vault access code 4651 | -9/Exiles | Opened EX-Vault 4671 | -9/Exiles | Found Chronowheel 4679 | -9/Exiles | Found Longsword +1 4731 | -9/Exiles | Warned to stay clear of 0b10 Research branches 4755 | -9/Exiles | Exiles lab attacked by MAIN.C 4842 | -9/Exiles | Attacked by the Exiles 4879 | -9/Exiles | Core integrity fell below 50% 4915 | -9/Exiles | Found 8R-AWN's Boregun 4917 | -9/Exiles | Lost 7 parts (3n2u2w) 4957 | -9/Exiles | Core integrity fell below 20% 4963 | -9/Exiles | Released all parts (3) 4965 | -9/Exiles | Found 8R-AWN's Boregun 4966 | -9/Exiles | Destroyed by P-60 Hacker with Shock Rifle Last Messages --------------- 04924_ Lgt. Armor Plating destroyed. 04925_ Dropped Rigged Fission Core. 04927_ DAS Turret system terminally corrupted. 04929_ Lgt. Treads destroyed. 04934_ Machine disabled. 04935_ Lgt. Treads destroyed. 04944_ Rigged Fission Core explodes. 04945_ System corrupted: FCS attempts to trigger Hvy. Assault Rifle. 04945_ System corrupted: Hvy. Assault Rifle misfires. 04949_ Dropped Hvy. Assault Rifle. 04959_ Lgt. Treads destroyed. 04962_ Dropped 8R-AWN's Boregun. 04963_ Released Adv. Myomer Leg. 04963_ Released Hcp. Storage Unit. 04963_ Released Thief Drone Bay. 04963_ Penetrated by Slug. 04963_ Dropped Assault Rifle. 04964_ Acquired 8R-AWN's Boregun. 04965_ Dropped 8R-AWN's Boregun. 04965_ Acquired 8R-AWN's Boregun. Map ----- +----------------------------------------------------+ | ?????????????????????????????????????????????????? | | ?????????????????????????????????????????????????? | | ?????????????????????????????????????????????????? | | ?????????????????????????????????????????????????? | | ?????????????????????????????????????????????????? | | ?????????????????????????????????????????????????? | | ?????????????????????????????????????????????????? | | ?????????????????????????????????????????????????? | | ?????????????????????????????????????????????????? | | ?????????????????????????????????????????????????? | | ?????????????????????????????????????????????????? | | ?????????????????????????????????????????????????? | | ?????????????????????????????????????????????????? | | ?????????????????????????????????????????????????? | | ?????????????????????????????????????????????????? | | ?????????????????????????????????????????????????? | | ?????????????????????????????????????????????????? | | ?????????????????????????????????????????????????? | | ?????????????????????????????????????????????????? | | ???????????? ???????????????#######?????????????? | | ???????????? ##?#?????????#!!! "#?????????????? | | ??????????? #"????????# "#?????????????? | | ???????????# ???????# "#?????????????? | | ????????????#" ?????## ""#?????????????# | | ????????????"" !#####" ""#????????????? | | ??????????????# */@ ##" ""#????????????? | | ???????????????# !!![#"" #??????????????" | | ???????????????#"## ]*[! #??????????????" | | ??????????????????#### [! p [[##?????????????" | | ?????????????????????### h "#???????????? | | ??????????????????????#" g ###???????????" | | ?????????????????????""" ##??????????# | | ???????????????????? "###"" g ######???### | | ?????????????????? "#?##" pg "" #####X# | | ?????????????????? ##??#" | | ??????????????????""""""##????#"# * ! | | ??????????????????######??????#### * %%= %% | | ?????????????????????????????????### % [ | | ???????????????????????????????????### = != | | ?????????????????????????????????????## % % | | ??????????????????????????????????????#" %% | | ?????????????????????????????????????# ##" | | ?????????????????????????????????????#### " | | ???????????????????????????????????????#"" | | ??????????????????????????????????????#"" | | ?????????????????????????????????????#"#" % | | ????????????????????????????????????# #""" | | ???????????????????????????????????# #?"" | | ??????????????????????????????????? #??"" | | ??????????????????????????????????????#" | +----------------------------------------------------+ Best States ------------- Heat Dissipation 52 Energy Generation 12 Energy Capacity 265 Matter Stores 300 Matter Capacity 300 Sight Range 16 Terrain Scan Density 10 Armor Coverage 375 Propulsion Shielding 33 Evasion (%) 55 Recoil Reduction 3 Item Schematics ----------------- None Robot Schematics ------------------ None Fabricated ------------ Nothing Alien Tech Used ----------------- None Achievements -------------- None Challenges ------------ None Game ------ Seed FlakClaymoresGreatsword Manual? 0 Play Time 00:20:12 Cumulative 374.4 hours Start 2022.06.09 @ 14:39:54 End 2022.06.09 @ 14:58:39 Sessions 1 Manual Loads 0 Difficulty Rogue Special Mode None Game No. 402 Rogue 402 Adventurer 0 Explorer 0 Win Type - Total 29 Types 18/3/2/1/2/0/3/0/0 Lore% 90 Gallery% 90 Achievement% 80 Wizard Run 0 Options --------- ASCII 0 Keyboard 0 Movement Arrows Keybinds 0 Fullscreen 2 Font 18/SmallcapsGlow Map View 76x50 Tactical HUD 1 Map Filters NONE Filters NONE Steam 1 RUN: fd6d6765-f282-42e5-b68e-026e8cce9874